bitfinex/quotes_BTCUSD_20250218
["timestamp","ask_amount","ask_price","bid_price","bid_amount"]
[1739889650095,0.0003842,96301.0,96300.0,0.004]
[1739889650302,0.0003842,96301.0,96300.0,0.159763]
[1739889650578,0.0003842,96301.0,96300.0,0.1605474]
[1739889650773,0.0003842,96301.0,96300.0,0.2710224]
[1739889650990,0.0003842,96301.0,96300.0,0.396338]
[1739889652058,0.0003842,96301.0,96300.0,0.392338]
[1739889652262,2e-07,96301.0,96300.0,0.549338]
[1739889652467,2e-07,96301.0,96300.0,0.5425081]
[1739889652907,0.0003404,96301.0,96300.0,0.5495081]
[1739889653340,0.0003404,96301.0,96300.0,0.5425081]
[1739889653986,0.0003404,96301.0,96300.0,0.3925081]
[1739889654776,0.0003404,96301.0,96300.0,0.3719081]
[1739889655215,0.0003404,96301.0,96300.0,0.3789081]
[1739889655422,0.0003404,96301.0,96300.0,0.3719081]
[1739889655850,0.0003404,96301.0,96300.0,0.3789081]
[1739889655851,4e-07,96301.0,96300.0,0.3789081]
[1739889656071,4e-07,96301.0,96300.0,0.3719081]
[1739889656485,4e-07,96301.0,96300.0,0.3789081]
[1739889657762,4e-07,96301.0,96300.0,0.3719081]
[1739889657985,4e-07,96301.0,96300.0,0.3789081]
[1739889658385,4e-07,96301.0,96300.0,0.3719081]
[1739889658636,4e-07,96301.0,96300.0,0.3789081]
[1739889659483,4e-07,96301.0,96300.0,0.3719081]
[1739889659658,4e-07,96301.0,96300.0,0.3789081]
[1739889660818,4e-07,96301.0,96300.0,0.15030445]
[1739889661260,4e-07,96301.0,96300.0,0.00714145]
[1739889661509,4e-07,96301.0,96300.0,0.00621713]
[1739889661710,0.1557614,96301.0,96300.0,0.00621713]
[1739889661923,4e-07,96301.0,96300.0,0.00714145]
[1739889662149,4e-07,96301.0,96300.0,0.00014145]
[1739889662364,4e-07,96301.0,96300.0,0.00621713]
[1739889662585,4e-07,96301.0,96300.0,0.16898013]
[1739889662797,4e-07,96301.0,96300.0,0.01321713]
[1739889663006,0.1500004,96301.0,96300.0,0.01321713]
[1739889663190,0.1500004,96301.0,96300.0,0.00714145]
[1739889663341,0.3057614,96301.0,96300.0,0.00714145]
[1739889663548,1.37720344,96301.0,96300.0,0.00714145]
[1739889663754,2.24898309,96301.0,96300.0,0.00714145]
[1739889663935,2.60582309,96301.0,96300.0,0.00714145]
[1739889664770,2.60582309,96301.0,96300.0,0.00014145]
[1739889665194,2.6111266,96301.0,96300.0,0.00114145]
[1739889665400,2.6111266,96301.0,96300.0,0.00014145]
[1739889665815,2.49130393,96301.0,96300.0,0.00014145]
[1739889666042,2.41919289,96301.0,96300.0,0.00014145]
[1739889666854,2.41388938,96301.0,96300.0,0.00014145]
[1739889667055,2.17967838,96301.0,96300.0,0.00014145]
[1739889667499,2.18367838,96301.0,96300.0,0.00014145]
[1739889667911,2.17767838,96301.0,96300.0,0.00014145]
[1739889668163,2.17967838,96301.0,96300.0,0.00014145]
[1739889668536,1.18616738,96301.0,96300.0,0.00014145]
[1739889668737,1.18716738,96301.0,96300.0,0.00014145]
[1739889669137,0.0010004,96301.0,96300.0,0.15590445]
[1739889669514,0.0010004,96301.0,96300.0,0.00626815]
[1739889670379,0.01667624,96301.0,96300.0,0.00014145]
[1739889670603,2.73996205,96301.0,96300.0,0.00014145]
[1739889670826,2.73966389,96301.0,96300.0,0.00014145]
[1739889671061,2.75494153,96301.0,96300.0,0.00014145]
[1739889671283,2.7045857,96301.0,96300.0,0.00014145]
[1739889671502,2.8613467,96301.0,96300.0,0.00014145]
[1739889671719,2.96285035,96301.0,96300.0,0.00014145]
[1739889672958,2.94657271,96301.0,96300.0,0.00014145]
[1739889673655,2.17702706,96301.0,96300.0,0.00014145]
[1739889673869,1.23206706,96301.0,96300.0,0.00014145]
[1739889674310,0.21783774,96320.0,96300.0,0.00014145]
[1739889674523,0.181761,96301.0,96300.0,0.00014145]
[1739889674728,6.745632,96301.0,96300.0,0.00014145]
[1739889674964,6.191704,96301.0,96300.0,0.00014145]
[1739889675175,6.185704,96301.0,96300.0,0.00014145]
[1739889675388,6.21667665,96301.0,96300.0,0.00014145]
[1739889675597,4.92181965,96301.0,96300.0,0.00114145]
[1739889675810,4.92181965,96301.0,96300.0,0.00014145]
[1739889676019,4.91121965,96301.0,96300.0,4.5e-07]
[1739889676237,0.62917265,96301.0,96300.0,4.5e-07]
[1739889676697,0.55522865,96301.0,96300.0,4.5e-07]
[1739889676903,0.55522865,96301.0,96257.0,2e-07]
[1739889676904,0.305831,96258.0,96257.0,2e-07]
[1739889677118,0.40833465,96258.0,96257.0,2e-07]
[1739889677766,0.43133465,96258.0,96257.0,2e-07]
[1739889677985,0.46977236,96258.0,96257.0,2e-07]
[1739889678418,0.46977236,96258.0,96214.0,0.0001706]
[1739889678419,0.305873,96232.0,96214.0,0.0001706]
[1739889678642,0.023,96221.0,96214.0,0.0001706]
[1739889678861,1.47056893,96221.0,96214.0,0.0001706]
[1739889679083,0.45176265,96221.0,96220.0,0.00706644]
[1739889679269,0.15,96221.0,96220.0,0.00077374]
[1739889679527,0.331643,96221.0,96220.0,0.00077374]
[1739889679715,2.86501605,96221.0,96220.0,0.00077374]
[1739889679960,1.94817605,96221.0,96220.0,0.00077374]
[1739889680261,0.173,96221.0,96220.0,0.00077374]
[1739889680366,0.15,96221.0,96220.0,0.00077374]
[1739889680593,0.15589,96222.0,96220.0,0.00077374]
[1739889680807,0.21783774,96230.0,96220.0,0.00077374]
[1739889681014,0.155883,96226.0,96220.0,0.00077374]
[1739889681225,0.21783774,96230.0,96221.0,0.16219678]
[1739889681440,0.023,96237.0,96220.0,0.00077374]
[1739889681653,0.01628975,96238.0,96222.0,0.00630511]
[1739889681876,0.15,96239.0,96220.0,0.00077374]
[1739889682093,0.15,96239.0,96238.0,0.155863]
[1739889682596,0.15,96239.0,96238.0,0.00627632]
[1739889682802,0.305861,96240.0,96238.0,0.00627632]
[1739889683013,0.01392948,96239.0,96220.0,0.20862974]
[1739889683192,0.01392948,96239.0,96220.0,0.00077374]
[1739889683396,0.155866,96237.0,96227.0,0.15588]
[1739889683604,0.01392948,96239.0,96228.0,0.155878]
[1739889683821,0.57565074,96240.0,96230.0,0.155875]
[1739889684037,0.52369874,96240.0,96231.0,0.155874]
[1739889684452,0.52369874,96240.0,96222.0,0.207852]
[1739889684658,0.36783774,96240.0,96220.0,0.00077374]
[1739889684893,0.42540191,96240.0,96223.0,0.00629372]
[1739889685105,0.305891,96221.0,96220.0,0.00077374]
[1739889685959,0.43139465,96221.0,96220.0,0.00077374]
[1739889686194,6.80668665,96221.0,96220.0,0.00077374]
[1739889686410,2.48448765,96221.0,96220.0,0.00077374]
[1739889686591,0.90482365,96221.0,96220.0,0.00077374]
[1739889686827,0.491543,96221.0,96220.0,0.00077374]
[1739889687033,0.679879,96221.0,96220.0,0.00077374]
[1739889687463,0.15,96221.0,96220.0,0.00077374]
[1739889687681,0.173,96221.0,96220.0,0.00377374]
[1739889687892,0.43269401,96221.0,96220.0,0.00377374]
[1739889688107,0.5338983,96221.0,96220.0,0.00077374]
[1739889688316,0.5338983,96221.0,96220.0,0.00377374]
[1739889688528,3.6985313,96221.0,96220.0,0.00377374]
[1739889688738,3.5359763,96221.0,96220.0,0.00077374]
[1739889688955,1.45076065,96221.0,96220.0,0.00077374]
[1739889689165,0.68314565,96221.0,96220.0,0.00077374]
[1739889689954,0.68314565,96221.0,96220.0,0.00377374]
[1739889691613,0.76024565,96221.0,96220.0,7.4e-07]
[1739889691815,0.6109983,96221.0,96220.0,7.4e-07]
[1739889692631,0.5338983,96221.0,96220.0,7.4e-07]
[1739889692845,0.43139465,96221.0,96220.0,7.4e-07]
[1739889693055,0.3059,96215.0,96214.0,0.0001706]
[1739889693262,4.89460065,96215.0,96214.0,0.0001706]
[1739889693487,6.38455065,96215.0,96214.0,0.0001706]
[1739889693694,7.0174003,96215.0,96214.0,0.0001706]
[1739889693898,5.5854743,96215.0,96214.0,0.0001706]
[1739889694099,5.5190993,96215.0,96214.0,0.0001706]
[1739889694497,5.1984253,96215.0,96214.0,0.0001706]
[1739889694727,5.1984253,96215.0,96208.0,9e-07]
[1739889694944,0.32896,96178.0,96177.0,0.26870559]
[1739889695163,0.43146365,96178.0,96177.0,0.20374967]
[1739889695375,0.63146365,96178.0,96177.0,0.18986224]
[1739889695584,9.32704765,96178.0,96177.0,5.6e-07]
[1739889695787,1.07863487,96178.0,96177.0,5.6e-07]
[1739889695991,1.1249526,96178.0,96177.0,5.6e-07]
[1739889696607,1.12539185,96178.0,96177.0,5.6e-07]
[1739889696813,0.75072916,96178.0,96177.0,5.6e-07]
[1739889697016,0.78774745,96178.0,96177.0,5.6e-07]
[1739889697218,0.47005008,96178.0,96177.0,5.6e-07]
[1739889697431,0.47421908,96178.0,96177.0,5.6e-07]
[1739889697640,0.57672273,96178.0,96177.0,5.6e-07]
[1739889697845,0.56972273,96178.0,96177.0,5.6e-07]
[1739889698045,0.57672273,96178.0,96177.0,5.6e-07]
[1739889698239,0.45121908,96178.0,96177.0,5.6e-07]
[1739889698389,0.22626603,96178.0,96177.0,5.6e-07]
[1739889698598,0.30121908,96178.0,96177.0,5.6e-07]
[1739889698796,0.29705008,96178.0,96177.0,5.6e-07]
[1739889699060,0.39955373,96178.0,96177.0,5.6e-07]
[1739889699259,0.39255373,96178.0,96177.0,5.6e-07]
[1739889699471,0.41555373,96178.0,96177.0,5.6e-07]
[1739889699615,0.14009008,96178.0,96177.0,5.6e-07]
[1739889699816,0.29005008,96178.0,96177.0,5.6e-07]
[1739889700305,0.31705008,96178.0,96177.0,5.6e-07]
[1739889700492,0.46305008,96178.0,96177.0,5.6e-07]
[1739889701612,0.46305008,96178.0,96177.0,0.00017096]
[1739889701816,0.56555373,96178.0,96177.0,0.00017096]
[1739889702435,0.56955373,96178.0,96177.0,0.00017096]
[1739889702640,0.76955373,96178.0,96177.0,0.00017096]
[1739889702846,0.74925429,96178.0,96177.0,0.00017096]
[1739889703258,0.80278743,96178.0,96177.0,0.00017096]
[1739889703463,0.79878743,96178.0,96177.0,9.6e-07]
[1739889703671,0.79647412,96178.0,96177.0,9.6e-07]
[1739889703876,0.80378743,96178.0,96177.0,9.6e-07]
[1739889704078,0.305994,96157.0,96156.0,0.0003404]
[1739889704286,7.51011065,96157.0,96156.0,0.0003404]
[1739889704502,8.37770748,96157.0,96156.0,0.0003404]
[1739889704702,9.80238062,96157.0,96156.0,0.0003404]
[1739889704914,9.80238062,96157.0,96120.0,0.1900356]
[1739889704915,0.1342,96156.0,96120.0,0.1900356]
[1739889705126,0.28155665,96121.0,96120.0,0.1900356]
[1739889705371,9.67388017,96121.0,96120.0,0.1900356]
[1739889705823,8.85889964,96121.0,96120.0,0.1900356]
[1739889706026,8.96140329,96121.0,96120.0,0.1900356]
[1739889706247,9.16140329,96121.0,96120.0,0.15876971]
[1739889706678,9.28462244,96121.0,96120.0,0.15876971]
[1739889707090,9.30093221,96121.0,96120.0,0.15876971]
[1739889707301,9.30593221,96121.0,96120.0,0.15876971]
[1739889707517,9.33315204,96121.0,96120.0,0.15876971]
[1739889707727,9.33315204,96121.0,96120.0,0.12750382]
[1739889707728,9.35315204,96121.0,96120.0,0.12750382]
[1739889707938,9.17404521,96121.0,96120.0,0.09621674]
[1739889708157,0.04,96118.0,96092.0,7e-05]
[1739889708371,9.93537744,96118.0,96092.0,7e-05]
[1739889708578,9.9340763,96118.0,96092.0,7e-05]
[1739889708790,9.61745365,96118.0,96092.0,7e-05]
[1739889709017,5.48500265,96118.0,96092.0,7e-05]
[1739889709236,5.68500265,96118.0,96092.0,7e-05]
[1739889709453,5.70500265,96118.0,96092.0,7e-05]
[1739889709664,5.49000265,96118.0,96092.0,7e-05]
[1739889709910,5.7875063,96118.0,96092.0,7e-05]
[1739889710410,5.8125063,96118.0,96092.0,7e-05]
[1739889710611,0.306098,96093.0,96092.0,7e-05]
[1739889710819,0.68760165,96093.0,96092.0,7e-05]
[1739889711244,6.45490265,96093.0,96092.0,7e-05]
[1739889711453,6.40100485,96093.0,96092.0,7e-05]
[1739889711696,5.04531185,96093.0,96092.0,7e-05]
[1739889711905,1.19457885,96093.0,96092.0,7e-05]
[1739889712111,1.35067685,96093.0,96092.0,7e-05]
[1739889712327,1.4818369,96093.0,96092.0,7e-05]
[1739889712542,1.6205227,96093.0,96092.0,7e-05]
[1739889712755,1.6205227,96093.0,96080.0,0.0001703]
[1739889712756,0.506118,96081.0,96080.0,0.0001703]
[1739889712989,0.156132,96072.0,96015.0,0.208299]
[1739889713197,0.46936704,96072.0,96050.0,0.048]
[1739889713411,0.43163565,96072.0,96050.0,0.048]
[1739889713630,7.11110265,96072.0,96050.0,0.048]
[1739889713848,6.35408165,96072.0,96050.0,0.048]
[1739889714059,0.173,96071.0,96050.0,0.048]
[1739889714279,0.023,96051.0,96031.0,0.0004]
[1739889714495,0.156196,96033.0,96031.0,0.0004]
[1739889714706,4.11574452,96032.0,96031.0,0.0004]
[1739889714919,4.11444265,96032.0,96031.0,0.0004]
[1739889715138,4.20112783,96032.0,96031.0,0.0004]
[1739889715788,2.48237165,96032.0,96031.0,0.0004]
[1739889715989,2.49336432,96032.0,96031.0,0.0004]
[1739889716427,2.49336432,96032.0,96004.0,0.1257]
[1739889716428,0.223,96030.0,96004.0,0.1257]
[1739889716640,0.223,96030.0,96004.0,0.0458]
[1739889716641,0.156241,96006.0,96004.0,0.0458]
[1739889716918,0.10250365,96005.0,96004.0,0.0458]
[1739889717144,0.26576665,96005.0,96004.0,0.0458]
[1739889717366,0.23801065,96005.0,96000.0,0.0104]
[1739889717589,0.156248,96002.0,96000.0,0.0104]
[1739889718035,0.38297848,96001.0,96000.0,0.0104]
[1739889718457,1.94407748,96001.0,96000.0,0.0104]
[1739889718655,1.96040487,96001.0,96000.0,0.0104]
[1739889718871,1.06484994,96001.0,96000.0,0.0104]
[1739889719083,0.01676529,96001.0,96000.0,0.0104]
[1739889719294,0.25918955,96001.0,96000.0,0.0104]
[1739889719503,0.41111342,96001.0,96000.0,0.0104]
[1739889719727,8.85526042,96001.0,95951.0,0.0004]
[1739889719941,0.023,95992.0,95965.0,0.0815]
[1739889720160,0.156281,95981.0,95968.0,0.1563]
[1739889720381,0.10250365,95981.0,95975.0,0.00517345]
[1739889720602,0.10250365,95981.0,95965.0,0.0815]
[1739889720824,0.21783774,95984.0,95983.0,0.156277]
[1739889721042,0.01632934,95998.0,95995.0,0.156257]
[1739889721260,0.05942561,96001.0,96000.0,0.15625]
[1739889721698,0.05942561,96001.0,96000.0,0.00514146]
[1739889721922,0.5778824,96001.0,96000.0,0.00514146]
[1739889722134,1.22316273,96001.0,95963.0,0.15]
[1739889722369,0.21783774,95990.0,95962.0,7e-05]
[1739889722589,0.15629,95976.0,95962.0,7e-05]
[1739889722798,0.10250365,95975.0,95962.0,7e-05]
[1739889723009,0.21783774,95990.0,95975.0,0.15629]
[1739889723224,0.88041465,95989.0,95968.0,0.208401]
[1739889723435,0.646935,95988.0,95976.0,0.00518312]
[1739889723674,0.023,95999.0,95964.0,0.2228335]
[1739889723675,0.04937666,96000.0,95964.0,0.0144225]
[1739889723882,0.156267,95990.0,95965.0,0.289908]
[1739889724093,0.64173788,95999.0,95965.0,0.289908]
[1739889724094,0.10250365,95999.0,95965.0,0.0815]
[1739889724311,0.2672144,96000.0,95966.0,0.00079324]
[1739889724312,0.04937666,96000.0,95966.0,0.00079324]
[1739889724602,0.04937666,96000.0,95975.0,0.15040365]
[1739889724828,0.0004379,96001.0,95965.0,0.0815]
[1739889724829,0.21783774,95990.0,95965.0,0.0815]
[1739889725038,0.15629,95975.0,95965.0,0.0815]
[1739889725255,0.13897045,95975.0,95965.0,0.0815]
[1739889725469,0.21783774,95990.0,95965.0,0.0815]
[1739889725680,0.02999355,95982.0,95972.0,0.208393]
[1739889725923,0.016328,95998.0,95965.0,0.0815]
[1739889726144,0.21783774,95990.0,95966.0,0.208406]
[1739889726362,0.21783774,95990.0,95965.0,0.0815]
[1739889726363,2.49812304,95989.0,95965.0,0.0815]
[1739889726570,0.001,95975.0,95970.0,0.156298]
[1739889726779,0.001,95975.0,95973.0,0.156293]
[1739889726988,0.0013023,95987.0,95965.0,0.0815]
[1739889727194,0.15629,95975.0,95965.0,0.0815]
[1739889727418,0.10250365,95986.0,95965.0,0.0815]
[1739889727619,0.1324972,95975.0,95964.0,0.0144225]
[1739889727820,0.01633017,95983.0,95964.0,0.0144225]
[1739889728158,2.201273,95982.0,95974.0,0.1564616]
[1739889728382,0.156273,95986.0,95974.0,0.0001706]
[1739889728593,2.19564,95985.0,95974.0,0.0001706]
[1739889728805,0.15627,95988.0,95966.0,0.208407]
[1739889729019,0.001,95975.0,95967.0,0.10250365]
[1739889729238,0.00130236,95986.0,95964.0,0.0144225]
[1739889729450,0.156276,95984.0,95966.0,0.156304]
[1739889729663,2.19731843,95983.0,95966.0,0.156304]
[1739889729894,2.19731843,95983.0,95964.0,0.0144225]
[1739889729895,2.196016,95982.0,95976.0,0.156287]
[1739889730117,0.156275,95985.0,95964.0,0.0144225]
[1739889730330,2.040083,95984.0,95965.0,0.208409]
[1739889730542,0.156274,95985.0,95964.0,0.0144225]
[1739889730763,0.01633021,95993.0,95964.0,0.0144225]
[1739889730764,0.20837,95983.0,95964.0,0.0144225]
[1739889731013,2.54138352,95982.0,95964.0,0.0144225]
[1739889731238,0.119022,95981.0,95964.0,0.0144225]
[1739889731447,2.361021,95983.0,95964.0,0.0144225]
[1739889731656,2.031538,95982.0,95964.0,0.02066175]
[1739889731865,0.156283,95980.0,95964.0,0.0144225]
[1739889732074,0.15628,95982.0,95967.0,0.156303]
[1739889732370,0.21783774,95990.0,95964.0,0.0144225]
[1739889732565,0.05450196,95989.0,95964.0,0.0144225]
[1739889732784,0.10250365,95988.0,95964.0,0.0144225]
[1739889732993,0.156305,95966.0,95964.0,0.0144225]
[1739889734476,0.15674263,95966.0,95964.0,0.0144225]
[1739889734711,0.6120674,95965.0,95964.0,0.0144225]
[1739889734928,2.19275165,95965.0,95964.0,0.0144225]
[1739889735150,1.4105613,95965.0,95964.0,0.0144225]
[1739889735382,0.508261,95965.0,95964.0,0.0144225]
[1739889735606,0.00043763,95966.0,95964.0,0.0144225]
[1739889735814,0.91530065,95965.0,95964.0,0.0144225]
[1739889736030,2.50281865,95965.0,95964.0,0.0144225]
[1739889736239,2.6263223,95965.0,95964.0,0.0144225]
[1739889737292,2.52381865,95965.0,95964.0,0.0144225]
[1739889737577,1.97300865,95965.0,95964.0,0.0144225]
[1739889737811,0.00043763,95966.0,95964.0,0.0145933]
[1739889738026,0.50697334,95965.0,95964.0,0.0145933]
[1739889738235,0.82495865,95965.0,95964.0,0.0145933]
[1739889738453,0.9304623,95965.0,95964.0,0.0145933]
[1739889738663,0.9274623,95965.0,95964.0,0.0145933]
[1739889739558,0.82495865,95965.0,95964.0,0.0145933]
[1739889739781,0.82895865,95965.0,95964.0,0.0145933]
[1739889739968,0.82495865,95965.0,95964.0,0.0145933]
[1739889740588,0.52931,95963.0,95962.0,3e-07]
[1739889740701,0.9903173,95963.0,95962.0,3e-07]
[1739889740909,0.88781365,95963.0,95962.0,3e-07]
[1739889741138,0.51481365,95963.0,95962.0,3e-07]
[1739889741347,0.00043763,95966.0,95962.0,3e-07]
[1739889741554,0.15631,95963.0,95962.0,3e-07]
[1739889741759,0.10250365,95965.0,95962.0,3e-07]
[1739889741973,0.00043763,95966.0,95962.0,3e-07]
[1739889742184,0.00043763,95966.0,95965.0,0.156306]
[1739889742610,0.00043763,95966.0,95965.0,0.237406]
[1739889742818,0.00043763,95966.0,95965.0,0.236406]
[1739889743226,0.00043763,95966.0,95965.0,0.237406]
[1739889744290,0.00043763,95966.0,95965.0,0.0811]
[1739889744497,0.15631,95963.0,95962.0,3e-07]
[1739889744705,0.34047251,95963.0,95962.0,3e-07]
[1739889744925,0.25881365,95963.0,95962.0,3e-07]
[1739889745133,0.15631,95963.0,95962.0,3e-07]
[1739889745335,0.00043763,95966.0,95962.0,3e-07]
[1739889745764,0.00043763,95966.0,95953.0,0.208435]
[1739889746189,0.00043763,95966.0,95951.0,0.0004]
[1739889746190,0.00043763,95966.0,95965.0,0.156306]
[1739889746403,0.00043763,95966.0,95965.0,0.281906]
[1739889746610,0.00043763,95966.0,95965.0,0.38440965]
[1739889746818,0.00043763,95966.0,95965.0,0.53440965]
[1739889747031,0.0003416,95999.0,95998.0,0.232353]
[1739889747501,0.0003416,95999.0,95998.0,0.23923731]
[1739889747748,0.0003416,95999.0,95998.0,0.23748609]
[1739889748166,0.0003416,95999.0,95998.0,0.33998974]
[1739889748391,0.0003416,95999.0,95998.0,0.34003369]
[1739889749269,0.0003416,95999.0,95998.0,0.34103369]
[1739889749501,0.0003416,95999.0,95998.0,0.08127704]
[1739889749740,0.0013416,95999.0,95998.0,0.08727704]
[1739889749942,0.0013416,95999.0,95998.0,0.18978069]
[1739889750155,0.0013416,95999.0,95998.0,0.18378069]
[1739889750375,0.0023416,95999.0,95998.0,0.34057309]
[1739889750587,0.0003416,95999.0,95998.0,0.33378069]
[1739889750804,0.0003416,95999.0,95998.0,0.18378069]
[1739889751017,0.0003416,95999.0,95998.0,0.08127704]
[1739889751887,0.0003416,95999.0,95998.0,0.08727704]
[1739889752119,0.0013416,95999.0,95998.0,0.18978069]
[1739889752324,0.0003416,95999.0,95998.0,0.18378069]
[1739889752536,0.0013416,95999.0,95998.0,0.18978069]
[1739889752753,0.0013416,95999.0,95998.0,0.08727704]
[1739889752977,0.0013416,95999.0,95998.0,0.08127704]
[1739889753192,0.0023416,95999.0,95998.0,0.08727704]
[1739889753404,0.0013416,95999.0,95998.0,0.08127704]
[1739889753620,0.0013416,95999.0,95998.0,0.00517704]
[1739889753833,0.93121311,95999.0,95998.0,0.00604395]
[1739889754041,0.89851211,95999.0,95998.0,0.00604395]
[1739889754683,1.07151211,95999.0,95998.0,9.5e-07]
[1739889754877,0.33527011,95999.0,95998.0,9.5e-07]
[1739889755134,6.124475,95998.0,95954.0,0.156323]
[1739889755344,0.156306,95966.0,95964.0,0.00030167]
[1739889755559,0.267273,95965.0,95964.0,0.00030167]
[1739889756650,1.10375065,95965.0,95964.0,0.00030167]
[1739889757289,0.83647765,95965.0,95964.0,0.00030167]
[1739889757498,3.3226533,95965.0,95964.0,0.00430167]
[1739889757913,3.33898634,95965.0,95964.0,0.00430167]
[1739889758133,1.41661469,95965.0,95964.0,0.00430167]
[1739889758343,0.01633304,95965.0,95964.0,0.00430167]
[1739889758549,0.12684704,95965.0,95964.0,0.00430167]
[1739889758756,0.12684704,95965.0,95964.0,0.00030167]
[1739889758974,0.01633304,95965.0,95964.0,0.00030167]
[1739889759221,0.031326,95991.0,95964.0,0.00030167]
[1739889759428,0.01633255,95983.0,95964.0,0.00030167]
[1739889759635,0.156301,95969.0,95965.0,0.00520852]
[1739889759839,0.208395,95972.0,95965.0,0.00520852]
[1739889760054,0.0003416,95999.0,95966.0,0.0812]
[1739889760268,0.33814804,95990.0,95966.0,0.0812]
[1739889760517,0.338504,95989.0,95967.0,0.10769948]
[1739889760775,0.006,95991.0,95973.0,0.08336503]
[1739889761006,0.006,95991.0,95979.0,0.156283]
[1739889761007,0.156266,95990.0,95979.0,0.156283]
[1739889761378,0.006,95991.0,95976.0,0.00079306]
[1739889761595,0.006,95991.0,95985.0,0.156274]
[1739889761806,0.006,95991.0,95976.0,0.10329671]
[1739889761807,1.05405788,95990.0,95942.0,0.02]
[1739889762023,1.05405788,95990.0,95930.0,0.05]
[1739889762024,0.156306,95965.0,95951.0,0.0004]
[1739889762249,0.156305,95966.0,95956.0,0.156321]
[1739889762457,0.156305,95966.0,95953.0,0.0792]
[1739889762678,0.01632981,95985.0,95957.0,0.08336503]
[1739889762916,0.2,96017.0,95957.0,0.08336503]
[1739889762917,0.208363,95987.0,95965.0,0.10250365]
[1739889763053,0.007,95990.0,95965.0,0.10250365]
[1739889763282,0.156285,95978.0,95967.0,0.156302]
[1739889763493,0.21931937,95990.0,95968.0,0.10250365]
[1739889763860,0.389903,95989.0,95968.0,0.10250365]
[1739889764072,0.10284525,95999.0,95968.0,0.10250365]
[1739889764073,0.0003416,95999.0,95969.0,0.08336503]
[1739889764250,0.0003416,95999.0,95970.0,0.17780365]
[1739889764440,0.003,95990.0,95989.0,0.156267]
[1739889764817,0.003,95990.0,95982.0,0.208371]
[1739889764996,0.003,95990.0,95983.0,0.10250365]
[1739889765205,0.003,95990.0,95989.0,0.201967]
[1739889765410,0.003,95990.0,95989.0,0.30447065]
[1739889765618,0.0003416,95999.0,95998.0,0.156253]
[1739889766018,0.0003416,95999.0,95998.0,0.34054918]
[1739889766220,0.0003416,95999.0,95998.0,0.33675665]
[1739889766793,0.0013416,95999.0,95998.0,0.34075665]
[1739889766955,0.0013416,95999.0,95998.0,0.53688752]
[1739889767132,0.0003416,95999.0,95998.0,0.55288752]
[1739889767336,0.0013416,95999.0,95998.0,0.55688752]
[1739889767763,0.01632326,96040.0,96005.0,0.02]
[1739889767960,0.33792629,96060.0,96030.0,0.127]
[1739889768167,0.156188,96038.0,96030.0,0.127]
[1739889768382,0.01632118,96052.0,96030.0,0.127]
[1739889768598,0.15619,96037.0,96030.0,0.127]
[1739889768800,0.01632118,96052.0,96030.0,0.127]
[1739889768956,0.156198,96032.0,96030.0,0.127]
[1739889769173,0.156217,96020.0,96019.0,0.0768]
[1739889769373,0.33792629,96050.0,96019.0,0.17930365]
[1739889769653,0.0163222,96045.0,96020.0,0.10250365]
[1739889769856,0.0163222,96045.0,96020.0,0.31079265]
[1739889770057,0.0163222,96045.0,96020.0,0.10250365]
[1739889770267,0.20824,96043.0,96020.0,0.10250365]
[1739889770513,0.156191,96037.0,96020.0,0.10250365]
[1739889770730,0.0163222,96045.0,96020.0,0.10250365]
[1739889770941,0.156217,96020.0,96019.0,0.0768]
[1739889771148,0.0193222,96045.0,96019.0,0.0768]
[1739889771354,0.156208,96026.0,96019.0,0.0768]
[1739889771561,0.20824,96043.0,96019.0,0.08917]
[1739889771775,0.156215,96021.0,96019.0,0.0768]
[1739889771985,0.156215,96021.0,96015.0,0.0469]
[1739889771986,0.156218,96020.0,96015.0,0.0469]
[1739889772189,0.208283,96023.0,96015.0,0.0469]
[1739889772408,0.58306,96022.0,96007.0,0.0827]
[1739889772628,0.48734,96021.0,96009.0,0.10250365]
[1739889772843,0.208289,96020.0,96009.0,0.10250365]
[1739889773050,0.208289,96020.0,96015.0,0.005]
[1739889773468,0.28874,96082.0,96009.0,0.10250365]
[1739889773469,0.10250365,96043.0,96009.0,0.10250365]
[1739889773682,0.156224,96016.0,96009.0,0.10250365]
[1739889773897,0.1348786,96042.0,96009.0,0.10250365]
[1739889774023,0.156221,96018.0,96009.0,0.10250365]
[1739889774250,0.156218,96020.0,96009.0,0.10250365]
[1739889774448,0.33792629,96040.0,96011.0,0.156231]
[1739889774706,0.20829,96020.0,96009.0,0.10250365]
[1739889774883,0.156221,96018.0,96009.0,0.25873765]
[1739889775280,0.20829,96020.0,96015.0,0.004]
[1739889775590,0.156215,96022.0,96015.0,0.004]
[1739889775800,0.33792629,96050.0,96009.0,0.10250365]
[1739889776034,0.01632293,96035.0,96009.0,0.10650365]
[1739889776238,0.156233,96010.0,96009.0,0.10650365]
[1739889776448,0.33792629,96030.0,96008.0,0.00013087]
[1739889776661,0.156225,96016.0,96015.0,0.003]
[1739889776880,0.03542492,96029.0,96011.0,0.156231]
[1739889777090,0.156219,96019.0,96011.0,0.25873465]
[1739889777481,0.208266,96031.0,96011.0,0.25873465]
[1739889777699,0.01732293,96035.0,96012.0,0.10250365]
[1739889778163,0.001,96035.0,96015.0,0.08336503]
[1739889778377,0.001,96035.0,96028.0,0.156203]
[1739889778591,0.01632188,96046.0,96016.0,0.10250365]
[1739889778820,0.156222,96017.0,96016.0,0.10250365]
[1739889779237,0.208291,96020.0,96016.0,0.10250365]
[1739889779680,0.33792629,96030.0,96012.0,0.003]
[1739889779888,0.33792629,96060.0,96017.0,0.10250365]
[1739889780095,0.156181,96042.0,96018.0,0.0457]
[1739889780313,0.01632266,96045.0,96044.0,0.156178]
[1739889780524,0.0003416,96062.0,96023.0,0.15]
[1739889780728,0.815723,96061.0,96040.0,0.208245]
[1739889780948,0.815723,96061.0,96026.0,0.08336503]
[1739889780949,0.156158,96057.0,96041.0,0.10250365]
[1739889781163,0.156163,96054.0,96044.0,0.156178]
[1739889781374,0.22486037,96062.0,96045.0,0.10250365]
[1739889781588,0.01709957,96062.0,96045.0,0.10250365]
[1739889781800,0.208216,96054.0,96031.0,0.156199]
[1739889782074,0.209274,96053.0,96032.0,0.10250365]
[1739889782293,0.33792629,96050.0,96021.0,0.2296]
[1739889782504,0.156188,96038.0,96028.0,0.156203]
[1739889782715,0.156188,96038.0,96029.0,0.10250365]
[1739889782922,0.208238,96044.0,96032.0,0.156196]
[1739889783141,1.2303155,96043.0,96021.0,0.0796]
[1739889783362,0.239158,96042.0,96022.0,0.10250365]
[1739889783611,0.208257,96035.0,96022.0,0.10250365]